bitfinex-derivatives/quotes_ETHF0:USTF0_20250320
["timestamp","ask_amount","ask_price","bid_price","bid_amount"]
[1742482525445,1.2952,2001.6,2001.4,0.99975]
[1742482525446,0.99975,2001.5,2001.4,0.99975]
[1742482525847,0.99975,2001.5,2001.4,0.99974]
[1742482526050,0.99978,2001.4,2001.3,3.476]
[1742482526238,0.99978,2001.4,2001.3,4.47583]
[1742482526439,0.99975,2001.5,2001.4,0.99974]
[1742482526835,1.2952,2001.6,2001.4,0.99974]
[1742482527040,0.99978,2001.4,2001.3,4.4758]
[1742482528654,0.99983,2001.3,2001.2,44.01528652]
[1742482528953,2.32853,2001.3,2001.2,47.49128652]
[1742482529147,2.32853,2001.3,2001.2,40.80748652]
[1742482530546,1.3287,2001.3,2001.2,45.01516652]
[1742482530746,0.99977,2001.5,2001.2,44.01528652]
[1742482530952,1.3287,2001.6,2001.3,4.47579]
[1742482531254,0.99978,2001.4,2001.3,3.476]
[1742482531755,0.99983,2001.3,2001.2,44.01528652]
[1742482531955,2.40623,2001.3,2001.2,44.01528652]
[1742482532654,1.4064,2001.3,2001.2,45.01516652]
[1742482533155,2.40623,2001.3,2001.2,45.54801539]
[1742482533454,2.40623,2001.3,2001.2,45.54800919]
[1742482533656,1.4064,2001.3,2001.2,45.54800919]
[1742482534758,0.99979,2001.4,2001.3,0.99979]
[1742482535956,0.99976,2001.5,2001.4,0.99974]
[1742482536158,0.99976,2001.5,2001.4,1.53319691]
[1742482536454,2.39632,2001.6,2001.5,0.99973]
[1742482536852,2.39632,2001.6,2001.4,4.47574]
[1742482536853,0.99973,2001.5,2001.4,4.47574]
[1742482537052,2.30103,2001.5,2001.4,4.47574]
[1742482537259,2.30103,2001.5,2001.4,3.476]
[1742482538353,2.30103,2001.5,2001.4,5.00961318]
[1742482538756,2.30103,2001.5,2001.4,4.00983318]
[1742482538952,2.30103,2001.5,2001.4,3.476]
[1742482540459,2.30103,2001.5,2001.4,5.00970976]
[1742482540660,2.30103,2001.5,2001.4,4.00992976]
[1742482540850,0.99983,2001.3,2001.2,0.00748652]
[1742482543560,0.99983,2001.3,2001.2,1.00736652]
[1742482543757,0.99983,2001.3,2001.2,1.54092503]
[1742482543960,0.99981,2001.4,2001.3,0.99978]
[1742482544158,0.99981,2001.4,2001.3,1.53334982]
[1742482544159,2.36001,2001.4,2001.3,1.53334982]
[1742482544355,3.20756652,2001.7,2001.3,1.53334982]
[1742482544356,0.99971,2001.6,2001.5,0.99968]
[1742482544556,2.35991,2001.6,2001.5,4.74104982]
[1742482544762,0.00748652,2001.7,2001.6,0.99968]
[1742482544959,0.00748652,2001.7,2001.6,3.68349273]
[1742482545157,0.00748652,2001.7,2001.6,4.83493951]
[1742482545356,1.66827,2002.1,2001.9,0.9995]
[1742482545357,0.99953,2002.0,2001.9,0.9995]
[1742482545557,2.35973,2002.0,2001.9,8.21670998]
[1742482545964,1.3602,2002.0,2001.9,9.64730998]
[1742482546161,0.99941,2002.2,2002.1,0.99936]
[1742482546365,2.37671,2002.2,2002.1,0.99936]
[1742482546960,0.99948,2002.0,2001.9,9.11389]
[1742482547263,0.99948,2002.0,2001.9,10.36755334]
[1742482547764,0.99948,2002.0,2001.9,10.99431021]
[1742482548261,0.99946,2002.1,2002.0,0.99944]
[1742482548463,0.99946,2002.1,2002.0,2.83708407]
[1742482549467,2.37672,2002.2,2002.1,0.99943]
[1742482549666,2.37672,2002.2,2002.1,1.53297407]
[1742482550170,0.99942,2002.2,2002.1,1.53297407]
[1742482550659,0.99942,2002.2,2002.1,0.53354407]
[1742482550962,0.99942,2002.2,2002.1,1.53345857]
[1742482551463,0.99942,2002.2,2002.1,0.53402857]
[1742482551767,0.99942,2002.2,2002.1,4.00902857]
[1742482556073,0.99942,2002.2,2002.1,4.00908976]
[1742482556364,3.8589,2002.3,2001.9,3.2078]
[1742482556571,0.99948,2002.0,2001.9,3.2078]
[1742482556867,0.99948,2002.0,2001.9,3.74193092]
[1742482557072,3.13018,2002.0,2001.9,3.74193092]
[1742482557464,3.13018,2002.0,2001.9,3.2078]
[1742482558869,0.99963,2001.7,2001.6,9.79304]
[1742482559066,0.99963,2001.7,2001.6,12.20227902]
[1742482559263,0.99963,2001.7,2001.6,12.82985188]
[1742482559463,0.99961,2001.8,2001.7,0.99956]
[1742482559674,0.99958,2001.9,2001.8,0.99954]
[1742482559875,5.68918,2002.1,2001.9,0.99948]
[1742482559876,0.6919,2002.1,2001.9,0.99948]
[1742482560074,1.69133,2002.1,2002.0,1.92961496]
[1742482560371,0.99943,2002.1,2002.0,2.65076714]
[1742482560675,0.99943,2002.1,2002.0,0.53431496]
[1742482562271,0.99948,2002.0,2001.9,6.6808]
[1742482562576,0.99948,2002.0,2001.9,7.21545468]
[1742482562761,0.99948,2002.0,2001.9,3.2078]
[1742482563770,7.35602,2002.3,2001.5,0.6781]
[1742482563771,0.99968,2001.6,2001.5,0.6781]
[1742482563973,0.99968,2001.6,2001.5,6.40750271]
[1742482564467,0.99968,2001.6,2001.5,7.07930983]
[1742482564667,0.99968,2001.6,2001.5,8.3362848]
[1742482564873,0.99968,2001.6,2001.5,6.6584548]
[1742482565072,0.99968,2001.6,2001.5,4.63615398]
[1742482565274,0.99968,2001.6,2001.5,0.53496415]
[1742482565574,0.99973,2001.5,2001.4,4.5081]
[1742482565770,1.69183,2001.5,2001.4,0.53525767]
[1742482565973,0.99978,2001.4,2001.3,49.661]
[1742482566167,0.99978,2001.4,2001.3,0.53533186]
[1742482566468,0.99983,2001.3,2001.2,0.00748652]
[1742482566667,0.99983,2001.3,2001.2,0.54277651]
[1742482566868,0.99983,2001.3,2001.2,0.00748652]
[1742482568267,4.47283,2001.3,2001.2,0.00748652]
[1742482568674,1.00002,2000.9,2000.8,49.3838]
[1742482568873,1.00002,2000.9,2000.8,0.53511923]
[1742482569266,1.00012,2000.7,2000.6,42.9167]
[1742482569465,1.00012,2000.7,2000.6,42.76488483]
[1742482569774,1.00012,2000.7,2000.6,41.33498483]
[1742482569976,1.00012,2000.7,2000.6,40.8]
[1742482570375,1.00012,2000.7,2000.5,6.6808]
[1742482570376,1.00017,2000.6,2000.5,3.2078]
[1742482570681,1.70887,2000.6,2000.5,3.2078]
[1742482571178,1.00017,2000.6,2000.5,4.7425006]
[1742482571376,1.00016,2000.7,2000.6,1.00017]
[1742482571577,3.21528652,2000.9,2000.7,1.00011]
[1742482571578,1.0001,2000.8,2000.7,1.00011]
[1742482571778,1.0001,2000.8,2000.7,1.94183574]
[1742482571978,1.0001,2000.8,2000.7,43.74195574]
[1742482572279,0.00748652,2000.9,2000.8,1.00007]
[1742482572479,1.00750652,2000.9,2000.8,5.42168097]
[1742482572677,0.00748652,2000.9,2000.8,5.42168097]
[1742482572869,1.00750652,2000.9,2000.8,45.22161097]
[1742482573274,1.00750652,2000.9,2000.8,46.22168097]
[1742482573775,1.00750652,2000.9,2000.8,45.22161097]
[1742482574274,1.00750652,2000.9,2000.8,44.6874]
[1742482574678,0.00748652,2000.9,2000.8,45.68747]
[1742482574880,0.00748652,2000.9,2000.8,46.22142624]
[1742482575474,0.99991,2001.2,2001.1,0.99993]
[1742482575673,0.99983,2001.3,2001.2,0.99988]
[1742482575871,0.99983,2001.3,2001.2,1.3664]
[1742482576175,0.99983,2001.3,2001.2,2.0754]
[1742482576582,3.82119,2001.4,2001.0,3.473]
[1742482576774,0.99993,2001.1,2001.0,3.473]
[1742482577083,0.99993,2001.1,2001.0,5.40246198]
[1742482577870,0.99993,2001.1,2001.0,4.8688]
[1742482578777,1.00002,2000.9,2000.8,3.2078]
[1742482579176,1.9932,2001.0,2000.7,0.7017]
[1742482579177,1.00007,2000.8,2000.7,0.7017]
[1742482579379,2.31167,2000.8,2000.7,2.0975]
[1742482580582,2.31167,2000.8,2000.7,3.09762]
[1742482580780,1.00006,2000.9,2000.8,1.00005]
[1742482581085,1.0,2001.0,2000.9,1.00002]
[1742482581284,1.0,2001.0,2000.9,1.3793]
[1742482581683,1.3387,2001.1,2000.8,3.8718]
[1742482581882,1.00007,2000.8,2000.7,4.1747]
[1742482582079,1.00007,2000.8,2000.7,5.554]
[1742482582776,1.00012,2000.7,2000.6,40.8]
[1742482582983,1.00012,2000.7,2000.6,42.0956]
[1742482583179,2.37881,2000.8,2000.7,1.00012]
[1742482583383,2.37881,2000.8,2000.7,2.82990967]
[1742482583585,2.37881,2000.8,2000.7,1.82978967]
[1742482583884,2.37881,2000.8,2000.7,1.2956]
[1742482584382,2.37881,2000.8,2000.7,2.82998264]
[1742482585290,1.00006,2000.9,2000.8,1.00007]
[1742482585483,1.00006,2000.9,2000.8,7.01513264]
[1742482586281,1.00006,2000.9,2000.8,4.7686]
[1742482586475,1.00017,2000.6,2000.5,44.72]
[1742482586680,1.00017,2000.6,2000.5,45.34796134]
[1742482586882,1.00017,2000.6,2000.5,45.88270962]
[1742482587083,1.00017,2000.6,2000.5,45.25474828]
[1742482587391,1.00017,2000.6,2000.5,4.45474828]
[1742482587688,1.00022,2000.5,2000.4,0.00748652]
[1742482587890,3.66472,2000.5,2000.4,0.00748652]
[1742482590089,2.32992,2000.5,2000.4,0.00748652]
[1742482590287,2.32992,2000.5,2000.4,3.62078562]
[1742482590490,1.00016,2000.7,2000.6,1.00014]
[1742482590688,1.00016,2000.7,2000.6,1.5354691]
[1742482590899,1.00016,2000.7,2000.6,42.42902627]
[1742482591092,1.00016,2000.7,2000.6,43.84032627]
[1742482591989,2.37526,2000.7,2000.6,45.09944755]
[1742482592185,3.19927,2001.0,2000.6,43.37607866]
[1742482592391,1.00001,2001.0,2000.8,3.2078]
[1742482592592,2.37511,2001.0,2000.9,2.38452]
[1742482592898,0.99994,2001.1,2001.0,0.99992]
[1742482593298,0.99982,2001.4,2001.3,0.99981]
[1742482593499,0.99983,2001.3,2001.2,4.47284]
[1742482593693,0.99983,2001.3,2001.2,5.85734]
[1742482593995,2.3749,2001.4,2001.3,0.53637316]
[1742482594194,0.99983,2001.3,2001.2,4.47285]
[1742482594397,2.37493,2001.3,2001.2,5.73359406]
[1742482594591,1.3751,2001.3,2001.2,5.73359406]
[1742482594793,1.3751,2001.3,2001.2,6.89234296]
[1742482594989,1.3751,2001.3,2001.2,7.52122923]
[1742482595194,2.37493,2001.3,2001.2,7.52174417]
[1742482595497,2.37493,2001.3,2001.2,6.52189417]
[1742482595704,2.37493,2001.3,2001.2,5.36293904]
[1742482596199,2.37493,2001.3,2001.2,1.88993904]
[1742482596807,2.37493,2001.3,2001.2,1.16559208]
[1742482597203,2.37493,2001.3,2001.2,0.62140627]
[1742482597402,1.00002,2000.9,2000.8,1.00005]
[1742482597711,1.00002,2000.9,2000.8,3.42119026]
[1742482598308,1.00002,2000.9,2000.8,2.42114026]
[1742482598609,1.00002,2000.9,2000.8,1.26164545]
[1742482599010,1.00007,2000.8,2000.7,3.472]
[1742482599209,2.38107,2000.8,2000.7,4.73356242]
[1742482599409,2.38107,2000.8,2000.7,1.26156242]
[1742482600005,2.38107,2000.8,2000.7,2.26168242]
[1742482600608,2.38107,2000.8,2000.7,1.26156242]
[1742482601008,2.38107,2000.8,2000.7,3.42138561]
[1742482602008,2.38107,2000.8,2000.7,0.53701767]
[1742482602514,2.38107,2000.8,2000.5,3.2078]
[1742482602515,1.00017,2000.6,2000.5,3.2078]
[1742482602712,1.00017,2000.6,2000.5,0.53727175]
[1742482602906,4.47217,2000.6,2000.5,0.53727175]
[1742482603211,5.84117,2000.6,2000.5,0.53727175]
[1742482603609,1.00022,2000.5,2000.4,0.00748652]
[1742482603913,2.36922,2000.5,2000.4,0.54479721]
[1742482606217,1.00022,2000.5,2000.4,1.26924086]
[1742482606512,2.35622,2000.5,2000.4,1.26906633]
[1742482607316,2.35622,2000.5,2000.4,0.54479721]
[1742482607508,2.35622,2000.5,2000.4,1.54506721]
[1742482607710,2.35622,2000.5,2000.4,2.26944631]
[1742482608212,2.35622,2000.5,2000.4,1.26917631]
[1742482608603,0.6989,2000.8,2000.4,4.74117631]
[1742482608810,1.3637,2000.7,2000.6,1.00014]
[1742482609110,1.00009,2000.8,2000.7,1.00012]
[1742482609307,1.00009,2000.8,2000.7,2.26180979]
[1742482609511,1.00005,2000.9,2000.8,1.00005]
[1742482609715,1.00002,2000.9,2000.8,0.53731069]
[1742482609914,1.00002,2000.9,2000.8,1.53738069]
[1742482610315,2.36371,2001.0,2000.9,1.00002]
[1742482610511,2.36371,2001.0,2000.9,0.53731069]
[1742482610810,4.1882,2001.1,2001.0,0.99998]
[1742482610811,0.99996,2001.1,2001.0,0.99998]
[1742482611014,2.40856,2001.1,2001.0,1.53604146]
[1742482611211,0.99991,2001.2,2001.0,0.53606146]
[1742482611415,1.4086,2001.2,2001.1,5.4668999]
[1742482611615,1.4086,2001.2,2001.1,6.1467999]
[1742482611917,1.4086,2001.2,2001.1,7.9324146]
[1742482612114,1.40828652,2001.5,2001.1,6.9324846]
[1742482612319,2.41583652,2001.5,2001.4,0.99978]
[1742482612614,2.41583652,2001.5,2001.4,1.53547308]
[1742482612817,2.41583652,2001.5,2001.4,1.53517171]
[1742482613209,0.00748652,2001.5,2001.4,5.46515311]
[1742482613612,0.99958,2001.8,2001.5,2.49928]
[1742482613816,6.6798,2002.1,2001.9,0.99949]
[1742482614015,6.6798,2002.1,2002.0,0.53472758]
[1742482614016,0.99944,2002.1,2002.0,0.53472758]
[1742482614318,2.31694,2002.1,2002.0,43.75800758]
[1742482614613,1.3638,2002.3,2002.0,46.96580758]
[1742482614817,2.31691,2002.2,2002.1,0.99943]
[1742482615012,2.31691,2002.2,2002.0,46.43105]
[1742482615219,0.99943,2002.1,2002.0,46.43105]
[1742482615521,2.3169,2002.2,2002.1,0.99943]
[1742482615819,2.3169,2002.2,2002.0,45.96493929]
[1742482615820,2.3169,2002.2,2002.0,46.43104]
[1742482616010,1.3175,2002.2,2002.0,46.43104]
[1742482616515,1.3175,2002.2,2002.0,45.4316]
[1742482616718,0.99941,2002.2,2002.0,45.4316]
[1742482616917,1.00684652,2002.3,2002.1,0.99943]
[1742482617117,1.00684652,2002.3,2002.2,4.8064]
[1742482620319,0.00748652,2002.3,2002.2,5.80578]
[1742482620521,1.00681652,2002.3,2002.2,4.8064]
[1742482622216,1.00681652,2002.3,2002.2,1.3354]
[1742482622820,0.99943,2002.1,2002.0,6.6768]
[1742482623218,0.99943,2002.1,2002.0,3.2078]
[1742482624121,0.99953,2001.9,2001.8,0.00748652]
[1742482630829,0.704,2002.2,2001.8,6.68328652]
[1742482631030,0.99939,2002.2,2002.1,4.20723]
[1742482631232,0.99939,2002.2,2002.1,7.67523]
[1742482631529,0.00748652,2002.3,2002.2,0.99938]
[1742482631733,0.00748652,2002.3,2002.2,2.39608]
[1742482632734,3.2078,2002.8,2002.6,0.99915]
[1742482632928,3.2078,2002.8,2002.7,0.9991]
[1742482632929,0.9991,2002.8,2002.7,0.9991]
[1742482633335,4.1293,2003.0,2002.5,3.15337]
[1742482633628,4.1293,2003.0,2002.7,0.9991]
[1742482633629,0.99909,2002.8,2002.7,0.9991]
[1742482634031,0.99913,2002.7,2002.6,2.39585]
[1742482634634,0.99913,2002.7,2002.6,1.3967]
[1742482635029,0.99913,2002.7,2002.6,2.39588]
[1742482635531,0.99911,2002.8,2002.7,0.9991]
[1742482635731,0.99913,2002.7,2002.6,2.39585]
[1742482636435,1.3127,2002.8,2002.7,0.99913]
[1742482636436,2.31181,2002.8,2002.7,0.99913]
[1742482636636,2.31181,2002.8,2002.7,2.38583]
[1742482638125,2.31181,2002.8,2002.7,1.3867]
[1742482638732,2.31181,2002.8,2002.7,2.38583]
[1742482639437,1.32618652,2003.0,2002.9,0.99903]
[1742482639438,0.00748652,2003.0,2002.9,0.99903]
[1742482639634,2.35706652,2003.0,2002.9,0.99903]
[1742482639838,0.99906,2002.9,2002.8,0.99904]
[1742482640034,0.99908,2002.8,2002.7,8.0615]
[1742482640232,0.99908,2002.8,2002.7,8.59418013]
[1742482640631,0.99908,2002.8,2002.7,9.59331013]
[1742482640835,1.3506,2002.9,2002.8,0.99908]
[1742482641032,1.3506,2002.9,2002.8,1.53176013]
[1742482641231,1.00648652,2003.0,2002.9,0.99903]
[1742482641433,2.32818652,2003.0,2002.9,2.95811013]
[1742482641737,2.32818652,2003.0,2002.9,1.95908013]
[1742482641936,2.32818652,2003.0,2002.9,1.4264]
[1742482642140,0.99908,2002.8,2002.7,7.67391]
[1742482642433,0.99908,2002.8,2002.7,4.45956141]
[1742482642633,0.99908,2002.8,2002.7,3.7404693]
[1742482642839,0.99908,2002.8,2002.7,4.45939262]
[1742482643038,0.99908,2002.8,2002.7,5.88579262]
[1742482643237,0.99908,2002.8,2002.7,6.51157218]
[1742482643738,0.99908,2002.8,2002.7,3.30377218]
[1742482643938,0.99908,2002.8,2002.7,0.62577956]
[1742482644342,0.99916,2002.7,2002.6,0.99917]
[1742482644638,2.3583,2002.8,2002.7,0.99913]
[1742482644838,2.3583,2002.8,2002.7,1.53207454]
[1742482645143,1.3592,2002.8,2002.7,3.63051325]
[1742482645444,1.00649652,2003.0,2002.9,0.99903]
[1742482645740,2.36569652,2003.0,2002.9,2.25111325]
[1742482645941,1.36668652,2003.0,2002.9,2.25072172]
[1742482646142,0.00748652,2003.0,2002.9,3.63002172]
[1742482646343,1.00646652,2003.0,2002.9,3.63002172]
[1742482646640,0.00748652,2003.0,2002.9,3.63002172]
[1742482646843,0.00748652,2003.0,2002.9,4.25561284]
[1742482647844,0.00748652,2003.0,2002.9,5.40576842]
[1742482648042,0.00748652,2003.0,2002.9,5.4053339]
[1742482648442,0.99881,2003.4,2003.3,0.99878]
[1742482648645,0.99887,2003.3,2003.2,0.99884]
[1742482648841,0.99887,2003.3,2003.2,2.86845707]
[1742482649242,0.99887,2003.3,2003.2,1.86961707]
[1742482649442,0.99887,2003.3,2003.2,1.3373]
[1742482650142,0.99887,2003.3,2003.2,2.86839084]
[1742482650838,2.349,2003.4,2003.3,0.99883]
[1742482651144,2.349,2003.4,2003.3,1.3629]
[1742482651747,1.00373104,2003.5,2003.4,0.99878]
[1742482651947,2.31872104,2003.5,2003.4,0.99878]
[1742482652149,2.31872104,2003.5,2003.4,2.36168]
[1742482652748,1.31999104,2003.5,2003.4,2.36168]
[1742482653052,2.31872104,2003.5,2003.4,2.36168]
[1742482653237,1.31999104,2003.5,2003.4,2.36168]
[1742482653541,0.99857,2003.9,2003.6,2.4967]
[1742482653744,1.3675,2003.9,2003.8,0.99858]
[1742482654146,1.3675,2003.9,2003.8,2.41628]
[1742482654635,2.36603,2003.9,2003.8,2.41628]
[1742482655149,2.36603,2003.9,2003.8,1.4177]
[1742482655441,0.99853,2003.9,2003.8,1.4177]
[1742482655643,0.99853,2003.9,2003.8,2.41628]
[1742482656043,0.99853,2003.9,2003.8,1.4177]
[1742482656245,0.99858,2003.8,2003.7,3.465]
[1742482656443,2.40508,2003.8,2003.7,3.465]
[1742482656644,0.99863,2003.7,2003.6,5.59935]
[1742482656841,0.99863,2003.7,2003.6,5.84848041]
[1742482656842,2.40513,2003.7,2003.6,5.84848041]
[1742482657042,2.40513,2003.7,2003.6,6.84716041]
[1742482657543,2.40513,2003.7,2003.6,6.84724263]
[1742482657947,2.40513,2003.7,2003.6,5.84856263]
[1742482659147,2.40513,2003.7,2003.6,5.13177502]
[1742482659344,2.40513,2003.7,2003.6,4.6007]
[1742482659549,2.40513,2003.7,2003.6,6.13107904]
[1742482659753,2.40513,2003.7,2003.6,5.85003291]
[1742482660453,2.40513,2003.7,2003.6,5.85052236]
[1742482660656,2.40513,2003.7,2003.6,5.85089194]
[1742482660855,2.40513,2003.7,2003.6,4.45799194]
[1742482661151,2.40513,2003.7,2003.6,3.2078]
[1742482661848,2.40513,2003.7,2003.4,51.0293]
[1742482661849,0.99873,2003.5,2003.4,51.0293]
[1742482662149,0.99883,2003.3,2003.2,3.2078]
[1742482662456,0.99883,2003.3,2003.2,4.45913494]
[1742482662655,0.99883,2003.3,2003.2,5.45801494]
[1742482662853,2.37333,2003.3,2003.2,1.15815996]
[1742482663055,3.05443,2003.3,2003.2,0.62560396]
[1742482663252,0.99893,2003.1,2003.0,0.00748652]
[1742482663456,0.99893,2003.1,2003.0,3.66558477]
[1742482663650,0.99893,2003.1,2003.0,2.66660477]
[1742482663855,0.99893,2003.1,2003.0,3.66558477]
[1742482664046,0.99893,2003.1,2003.0,4.29147549]
[1742482664250,0.99893,2003.1,2003.0,3.29249549]
[1742482664445,0.99893,2003.1,2003.0,1.88569549]
[1742482664647,0.99893,2003.1,2003.0,1.16635385]
[1742482665151,0.99893,2003.1,2003.0,0.54046313]
[1742482665355,0.99893,2003.1,2003.0,0.54054927]
[1742482666358,0.99918,2002.6,2002.5,6.6708]
[1742482666659,0.99918,2002.6,2002.5,5.61192853]
[1742482666957,0.99918,2002.6,2002.5,4.46057046]
[1742482667159,0.99918,2002.6,2002.5,3.74109455]
[1742482667351,3.08648,2002.6,2002.5,3.74109455]
[1742482667547,3.08648,2002.6,2002.5,5.16229455]
[1742482668657,3.08648,2002.6,2002.5,3.74109455]
[1742482669356,0.99923,2002.5,2002.4,86.944]
[1742482669660,2.32773,2002.5,2002.4,46.144]
[1742482669863,2.32773,2002.5,2002.4,46.67705297]
[1742482670056,2.32773,2002.5,2002.4,89.78113297]
[1742482670962,2.32773,2002.5,2002.4,89.24808]
[1742482671159,1.3285,2002.5,2002.4,89.78095181]
[1742482671363,3.8821,2002.7,2002.5,0.99919]
[1742482671558,2.39399,2002.6,2002.5,0.99919]
[1742482671752,0.00748652,2002.8,2002.7,0.99913]
[1742482671955,1.40228652,2002.8,2002.7,1.53180225]
[1742482672161,2.40136652,2002.8,2002.7,1.53180225]
[1742482672362,0.99913,2002.7,2002.6,1.67264]
[1742482672561,2.39393,2002.7,2002.6,2.20530639]
[1742482672959,1.3948,2002.7,2002.6,2.20530639]
[1742482673265,1.00659652,2002.8,2002.7,0.99913]
[1742482673564,1.00659652,2002.8,2002.7,1.53173379]
[1742482673763,1.00659652,2002.8,2002.7,0.53260379]
[1742482673960,1.00659652,2002.8,2002.7,1.53173379]
[1742482674856,1.00659652,2002.8,2002.7,0.53260379]
[1742482675056,0.99913,2002.7,2002.6,0.6735]
[1742482675257,2.42273,2002.7,2002.6,1.20617993]
[1742482676368,2.42273,2002.7,2002.6,0.53267993]
[1742482676765,0.99913,2002.7,2002.6,1.53185993]
[1742482676963,2.42593,2002.7,2002.6,1.53185993]
[1742482677562,1.4268,2002.7,2002.6,1.53185993]
[1742482677763,2.4971,2003.3,2003.0,0.9989]
[1742482677962,2.42574,2003.2,2003.1,0.99888]
[1742482678165,2.42574,2003.2,2003.1,1.53134158]
[1742482678365,2.42574,2003.2,2003.1,0.53246158]
[1742482678764,2.42574,2003.2,2003.1,1.53139158]
[1742482678957,2.42574,2003.2,2003.1,1.53157546]
[1742482679269,2.42574,2003.2,2003.1,0.53264546]
[1742482679575,2.42574,2003.2,2003.1,1.53157546]
[1742482679771,0.99882,2003.4,2003.3,0.99879]
[1742482680066,0.99883,2003.3,2003.2,1.3887]
[1742482680272,0.99883,2003.3,2003.2,1.92132474]
[1742482680966,0.99883,2003.3,2003.2,1.3887]
[1742482681169,0.99898,2003.0,2002.9,3.463]
[1742482681372,0.99898,2003.0,2002.9,5.62018963]
[1742482681561,0.99898,2003.0,2002.9,4.62115963]
[1742482681762,0.99898,2003.0,2002.9,1.15815963]
[1742482682272,0.99908,2002.8,2002.7,3.463]
[1742482682478,0.99918,2002.6,2002.5,9.04539]
[1742482682664,0.99918,2002.6,2002.5,9.57833566]
[1742482682859,0.99918,2002.6,2002.5,5.74194196]
[1742482683071,0.99918,2002.6,2002.5,9.20394196]
[1742482683667,0.99918,2002.6,2002.5,8.57810902]
[1742482684170,0.99918,2002.6,2002.5,9.92180902]
[1742482684470,0.99918,2002.6,2002.5,8.54640902]
[1742482684663,0.99918,2002.6,2002.5,5.08440902]
[1742482685073,0.99923,2002.5,2002.4,46.144]
[1742482685372,0.99928,2002.4,2002.3,0.00748652]
[1742482685570,1.71338,2002.4,2002.3,6.52e-06]
[1742482685766,4.21338,2002.4,2002.3,6.52e-06]
[1742482686069,5.54078,2002.4,2002.3,6.52e-06]
[1742482686869,5.62670885,2002.4,2002.3,6.52e-06]
[1742482687074,0.99981,2001.4,2001.2,49.3608]
[1742482687265,0.99976,2001.5,2001.4,0.99977]
[1742482687470,9.16877,2001.8,2001.4,1.84728393]
[1742482687471,0.99971,2001.6,2001.4,1.84728393]
[1742482687673,1.2914,2001.7,2001.5,1.53253948]
[1742482687969,2.29103,2001.7,2001.6,1.3141]
[1742482690674,1.2914,2001.7,2001.6,2.31378]
[1742482690971,1.00706652,2001.8,2001.6,2.8462849]
[1742482691169,0.00748652,2001.8,2001.7,2.29803]
[1742482691370,1.00706652,2001.8,2001.7,5.29402957]
[1742482691572,1.00706652,2001.8,2001.7,45.5614]
[1742482691971,0.00748652,2001.8,2001.7,46.56103]
[1742482692166,0.00748652,2001.8,2001.7,47.09356774]
[1742482692366,0.00748652,2001.8,2001.7,47.81220892]
[1742482692579,3.9219,2002.4,2002.0,0.99946]
[1742482692580,0.7141,2002.4,2002.0,0.99946]
[1742482692777,2.32238,2002.2,2002.1,1.3864]
[1742482694378,2.32238,2002.2,2002.1,2.91820484]
[1742482694578,2.32238,2002.2,2002.1,1.3864]
[1742482694779,1.323,2002.2,2002.1,2.91825639]
[1742482695091,0.99918,2002.6,2002.1,5.13583468]
[1742482695288,0.99918,2002.6,2002.5,0.9992]
[1742482695484,0.99918,2002.6,2002.5,1.53151477]
[1742482695685,0.99918,2002.6,2002.5,2.89561477]
[1742482695885,1.2994,2002.7,2002.5,1.89641477]
[1742482696088,1.2994,2002.7,2002.5,1.3641]
[1742482696484,1.2994,2002.7,2002.6,0.99918]
[1742482696689,0.99907,2002.9,2002.6,0.53236032]
[1742482696987,1.3729,2003.1,2002.7,8.56718741]
[1742482697284,2.29835,2003.1,2003.0,0.99898]
[1742482697490,0.99903,2002.9,2002.8,1.68544]
[1742482698000,0.99903,2003.0,2002.9,0.99901]
[1742482698299,0.99903,2002.9,2002.8,1.68543]
[1742482698492,0.99903,2002.9,2002.8,2.21753764]
[1742482698893,1.2994,2003.1,2002.7,6.6708]
[1742482698894,0.99908,2002.8,2002.7,6.6708]
[1742482699196,0.99923,2002.5,2002.4,0.00748652]
[1742482704101,0.99923,2002.5,2002.4,1.00676652]
[1742482704602,0.99923,2002.5,2002.4,0.00748652]
[1742482704903,0.99923,2002.5,2002.4,1.00676652]
[1742482705201,0.99923,2002.5,2002.4,0.00748652]
[1742482705603,0.99923,2002.5,2002.4,1.00676652]
[1742482706303,0.99923,2002.5,2002.4,0.00748652]
[1742482707107,3.66463,2002.5,2002.4,0.00748652]
[1742482707301,0.99938,2002.2,2002.1,46.163]
[1742482707697,0.99948,2002.0,2001.9,7.66932]
[1742482707898,0.99948,2002.0,2001.9,8.20185259]
[1742482708393,2.35576,2002.1,2002.0,0.99948]
[1742482708598,0.99948,2002.0,2001.9,7.6693]
[1742482708806,2.35578,2002.0,2001.9,7.20251689]
[1742482709108,2.35578,2002.0,2001.9,3.74051689]
[1742482709498,0.99958,2001.8,2001.7,0.00748652]
[1742482710202,2.35588,2001.8,2001.7,0.00748652]
[1742482710701,0.99958,2001.8,2001.7,1.54034428]
[1742482711002,0.99956,2001.9,2001.8,0.99953]
[1742482711194,0.99956,2001.9,2001.8,1.53275776]
[1742482711506,0.99956,2001.9,2001.8,4.99475776]
[1742482711704,2.34781,2002.0,2001.9,0.99953]
[1742482711904,3.21528652,2002.2,2002.0,0.99943]
[1742482712210,0.00748652,2002.2,2002.1,1.53257884]
[1742482712407,0.00748652,2002.2,2002.1,5.71415397]
[1742482712905,0.00748652,2002.2,2002.1,7.49151684]
[1742482713104,2.34756,2002.5,2002.1,7.49151684]
[1742482713105,1.3483,2002.5,2002.4,0.99928]
[1742482713299,0.99917,2002.7,2002.4,3.99514884]
[1742482713495,0.99917,2002.7,2002.6,0.99914]
[1742482713700,0.99917,2002.7,2002.6,0.53314884]
[1742482714608,0.99917,2002.7,2002.6,1.53232884]
[1742482714806,1.3239,2002.9,2002.6,0.53314884]
[1742482715003,0.99908,2002.8,2002.7,1.93164884]
[1742482715199,0.99908,2002.8,2002.7,1.3985]
[1742482715399,0.99908,2002.8,2002.4,49.63]
[1742482715400,2.49773,2002.8,2002.4,49.63]
[1742482715605,0.99923,2002.5,2002.4,50.62928]